Workbook

Sheet Foglio1
A2: CAPITOLO 69214 SCUOLE | B2: Cod.clienti | C2: Indirizzo | D2: N.FATTURA | E2: 1 TRIM.2018 | F2: 2 TRIM.2018 | G2: 3 TRIM. | H2: 4^ TRIM.18
A4: ELEM.POPPI | B4: 169823 | C4: Via Colle Ascensione Poppi Fuori Mura | D4: 5/2018/00006937 | E4: 603.35 | F4: 506.39 | G4: 512.16 | H4: 544.17 | I4: FT,9100
A5: SCUOLE ELEM. BADIA | B5: 201040 | C5: Via Nazionale Badia Prataglia | D5: 5/2018/00007977 | E5: 78.93 | F5: 149.93 | G5: 133.6 | H5: 158.84 | I5: FT,10080
E6: =SUM(E4:E5) -> 682.28 | F6: =SUM(F4:F5) -> 656.32 | G6: =SUM(G4:G5) -> 645.76
A7: CAPITOLO 69214 | H7: =SUM(H4:H5) -> 703.01
A9: BAGNI PUBBLICI | B9: 153830 | C9: Via Mino da Poppi Poppi Centro | D9: 5/2018/00006883 | E9: 22.93 | F9: 116.1 | G9: 24.42 | H9: 23.76 | I9: FT,10099
A10: EX ELE.P A POPPI | B10: 151595 | C10: Piazza Risorgimento 36 Ponte a Poppi | D10: 5/2018/00006848 | E10: 231 | F10: 162.8 | G10: 306.52 | H10: 175.34 | I10: FT,9015
A11: CENT.SOC. AVENA | B11: 200413 | C11: Fraz. Avena Case Sparse | D11: 5/2018/00007858 | E11: 20.13 | F11: 23.54 | G11: 136.62 | H11: 24.09 | I11: FT,9970
A12: EX PRETURA | B12: 200856 | C12: Via Mino da Poppi Poppi Centro | D12: 5/2018/00007930 | E12: 49.01 | F12: 23.16 | G12: 41.36 | H12: 121.82 | I12: FT,10036
A13: EX SCUOLA LIERNA | B13: 200891 | C13: Fraz.Lierna 67 Case Sparse | D13: 5/2018/00007931 | E13: 15.73 | F13: 38.01 | G13: 55.11 | H13: 38.88 | I13: FT,10037
A14: EX CINEMA BADIA | B14: 201145 | C14: Via Eden Badia Prataglia | D14: 5/2018/00007987 | E14: 169.12 | F14: 169.29 | G14: 175.29 | H14: 175.34 | I14: FT,10089
A15: EX SCU BECARINO | B15: 195037 | C15: Via Becarino 32/A - (246874 vecchio codice) | D15: 5/2018/00007483 | E15: 13.75 | F15: 26.79 | G15: 38.06 | H15: 27.44 | I15: FT,9614
A16: UFFICI PUBBLICI SEDE COMUNALE | B16: 246874 | C16: Via dei Bianchi Poppi Centro | D16: 5/2018/00008177 | E16: 8.2 | F16: 30.58 | G16: 24.58 | H16: 31.3 | I16: FT,10273
A17: MAGAZZINO COMUNALE | B17: 201334 | C17: Via Corta Ponte a Poppi | D17: 5/2018/00007997 | E17: 74.97 | F17: 72.16 | G17: 78.49 | H17: 73.42 | I17: FT,10098
A18: MAG. SPAZINO COMUNALE | B18: 200403 | C18: Piazza XIII Aprile Badia Prataglia | D18: 5/2018/00007851 | E18: 189.81 | F18: 127.27 | G18: 193.77 | H18: 133.15 | I18: FT,9963
A19: OSSERV. FAUNISTICO MOGGIONA | B19: 151592 | C19: Via della Porta 31 Moggiona | D19: 5/2018/00006846 | E19: 22.93 | F19: 26.84 | G19: 32.06 | H19: 27.55 | I19: FT,9013
E20: =SUM(E9:E19) -> 817.58
F21: =SUM(F7:F20) -> 816.54 | G21: =SUM(G9:G20) -> 1106.28 | H21: =SUM(H9:H19) -> 852.09
A22: CAPITOLO 173005 FONTANE
A24: f.POPPI V. SOCIANI | B24: 151368 | C24: Via Sociani Poppi Centro | D24: 5/2018/00006833 | E24: 4.18 | F24: 4.23 | G24: -2.03 | H24: 4.29 | I24: FT,9000
A25: f.BADIA XIII APRILE | B25: 151460 | C25: Piazza XIII Aprile Badia Prataglia | D25: 5/2018/00006843 | E25: 4.24 | F25: 16.83 | G25: 26.02 | H25: 19.2 | I25: FT,9010
A26: f.PORRENA ALTA | B26: 151619 | C26: Loc. Porrena Alta Porrena | D26: 5/2018/00006857 | E26: -2.09 | F26: 4.18 | G26: 0.11 | H26: 2.09 | I26: FT,9024
A27: f.MEMMENANO 1 | B27: 153005 | C27: Loc. Memmenano Case Sparse | D27: 5/2018/00006873 | E27: -18.76 | F27: 4.23 | G27: 19.64 | H27: 25.63 | I27: FT,9040
A28: f.CERTOMONDO | B28: 153831 | C28: Loc. Certomondo Ponte a Poppi | D28: 5/2018/00006884 | E28: 2.09 | F28: 4.23 | G28: 23.54 | H28: 6.43 | I28: FT,9050
A29: f.POPPI V V.VENETO | B29: 176361 | C29: Viale Vittorio Veneto 15 Poppi Fuori Mura | D29: 5/2018/00006964 | E29: 24.91 | F29: 22.99 | G29: 2.7 | H29: 23.48 | I29: FT,9127
A30: f.SAN MARTINO 1 | B30: 197181 | C30: Fraz. S. Martino in Tremoleto Case Sparse | D30: 5/2018/00007623 | E30: 6.1 | F30: 20.9 | G30: 23.98 | H30: 21.29 | I30: FT,9744
A31: f.MOGGIONA V. LASTRI | B31: 200405 | C31: Via dei Lastri Moggiona | D31: 5/2018/00006743 | E31: -2.09 | G31: 4.29
A32: f.AVENA 1 | B32: 200406 | C32: Fraz. Avena Case Sparse | D32: 5/2018/00007853 | E32: 20.13 | F32: 6.32 | G32: 34.76 | H32: 27.39 | I32: FT,9965
A33: f.P.A POPPI P. RISORG. | B33: 200407 | C33: Piazza Risorgimento Ponte a Poppi | D33: 5/2018/00007854 | E33: -4.18 | F33: 4.23 | G33: 10.78 | H33: 4.24 | I33: FT,9966
A34: f. P.A POPPI P.GARIBAL | B34: 200408 | C34: Piazza Garibali Ponte a Poppi | D34: 5/2018/00007855 | E34: -12.54 | F34: 4.23 | G34: 17.16 | H34: 4.29 | I34: FT,9967
A35: f.POPPI P.GRAMSCI 1 | B35: 200409 | C35: Piazza Antonio Gramsci Poppi Centro | D35: 5/2018/00007856 | E35: 2.09 | F35: 4.23 | G35: 15.02 | H35: 4.29 | I35: FT,9968
A36: f.POPPI P. GRAMSCI 2 | B36: 200410 | C36: Piazza Antonio Gramsci Poppi Centro | D36: 5/2018/00007857 | E36: 0 | F36: 4.23 | G36: 4.4 | H36: 4.24 | I36: FT,9969
A37: f.AVENA 2 | B37: 200414 | C37: Fraz. Avena Case Sparse | D37: 5/2018/00007859 | E37: 2.09 | F37: 26.79 | G37: 12.98 | H37: 6.38 | I37: FT,9971
A38: f.P.A POPPI V RESISTEN | B38: 200415 | C38: Via della Resistenza Ponte a Poppi | D38: 5/2018/00007860 | E38: -56.82 | F38: 140.19 | G38: 36.69 | H38: 149 | I38: FT,9972
A39: f.P.A POPPI VIA GORIZIA | B39: 200417 | C39: Via Gorizia Poppi Fuori Mura | D39: 5/2018/00007861 | E39: -2.09 | F39: 27.34 | G39: -10.23 | H39: 29.87 | I39: FT,9973
A40: f.MEMMENANO 2 | B40: 200419 | C40: Loc. Memmenano Case Sparse | D40: 5/2018/00007863 | E40: 2.09 | F40: 25.25 | G40: 6.49 | H40: 2.14 | I40: FT,9975
A41: f.POPPI VIA CAVOUR | B41: 200422 | C41: Via Cavour Poppi Centro | D41: 5/2018/00007865 | E41: 2.14 | F41: 8.42 | G41: 10.84 | H41: 8.53 | I41: FT,9977
A42: f.POPPI P.AMERIGHI | B42: 200423 | C42: Piazza Amerighi Ponte a Poppi | D42: 5/2018/00007866 | E42: 85.96 | F42: 49.17 | G42: 172.54 | H42: 53.95 | I42: FT,9978
A43: f.QUORLE | B43: 200599 | C43: Loc. Quorle Case Sparse | D43: 5/2018/00007915 | E43: 2.09 | F43: 10.56 | G43: 0.22 | H43: 10.67 | I43: FT,10022
A44: f.RIOSECCO | B44: 200601 | C44: Loc. Riosecco Case Sparse | D44: 5/2018/00007916 | E44: -2.09 | F44: 8.42 | G44: 6.55 | H44: 8.58 | I44: FT,10023
A45: f.BADIA V.FIUME D.ISO | B45: 201041 | C45: Via Fiume d' Isola Badia Prataglia | D45: 5/2018/00007978 | E45: -6.27 | F45: 6.32 | G45: 42.84 | H45: 6.38 | I45: FT,10081
A46: f.LIERNA | B46: 201047 | C46: Fraz. Lierna Case Sparse | D46: 5/2018/00007983 | E46: -2.09 | G46: 8.58
A47: f.SAN MARTINO 2 | B47: 201144 | C47: Fraz. Martino in Tremoleto Case Sparse | D47: 5/2018/00007986 | E47: 0 | F47: 8.42 | G47: 17.22 | H47: 8.58 | I47: FT,10088
A48: f.BADIA P.MERCATO | B48: 201149 | C48: Piazza del Mercato Badia Prataglia | D48: 5/2018/00007990 | E48: 8.42 | F48: 10.51 | G48: -1.87 | H48: 10.67 | I48: FT,10092
A49: f.POPPI P.REPUBBL.1 | B49: 203334 | C49: Piazza della Repubblica 1 Poppi Centro | D49: 5/2018/00008006 | E49: -6.21 | F49: 42.08 | G49: 22.11 | H49: 44.83 | I49: FT,10107
A50: f.P.A POPPI V.EUROPA | B50: 213895 | C50: Viale Europa Ponte a Poppi | D50: 5/2018/00008042 | E50: 71.33 | F50: 67.76 | G50: 354.04 | H50: 72.82 | I50: FT,10142
A51: f. MOGGIONA V. CAMALDOLI | B51: 200401 | C51: Via di Camaldoli Moggiona | D51: 5/2018/00007850 | E51: 6.27 | F51: 4.23 | G51: 19.31 | H51: 4.29 | I51: FT,9962
A52: f. POPPI V. ROTONDA | B52: 230168 | C52: Via Roma Ponte a Poppi | D52: 5/2018/00008093 | E52: -5.5 | F52: 192 | G52: -107.41 | H52: 204.87 | I52: FT,10190
E53: =SUM(E24:E52) -> 123.4 | F53: =SUM(F24:F52) -> 728.29 | G53: =SUM(G24:G52) -> 771.27 | H53: =SUM(H24:H52) -> 768.42
A55: CAPITOLO 93016
A57: BIBL.FARM. POPPI | B57: 201147 | C57: Piazza Amerighi Poppi Centro | D57: 5/2018/00007988 | E57: 130.29 | F57: 38.01 | G57: 108.57 | H57: 42.62 | I57: FT,10090
A58: CASTELLO | B58: 201336 | C58: Piazza della Repubblica Poppi Centro | D58: 5/2018/00007998 | E58: 22.93 | F58: 23.16 | G58: 23.76 | H58: 23.76 | J58: =SUM(E58:I58) -> 93.61
E59: =SUM(E57:E58) -> 153.22 | F59: =SUM(F57:F58) -> 61.17
A60: CAPITOLO 178405 IMP. SPORTIVI | H60: =SUM(H57:H59) -> 66.38
A62: CAMPO SPORTIVO | B62: 231243 | C62: Viale Europa Ponte a Poppi | D62: 5/2018/00008098 | E62: 1072.28 | F62: 613.08 | G62: 967.89 | H62: 661.65 | I62: FT,10195
A63: CAMPO SPORTIVO | B63: 201048 | C63: Via Fonte alle Fate Poppi Fuori Mura | D63: 5/2018/00007984 | E63: -76.5 | F63: 23.16 | G63: 24.47 | H63: 23.76 | I63: FT,10086
A64: PALAZZETTO DELLO SPORT | B64: 200854 | C64: Via Buiano Poppi Fuori Mura | D64: 5/2018/00007928 | E64: 565.84 | F64: 353.98 | G64: 116.71 | H64: 393.36 | I64: FT,10034
A65: PALESTRA BADIA 1 | B65: 241369 | C65: Via Eden Badia Prataglia | D65: 5/2018/00008158 | E65: 19.25 | F65: 26.89 | G65: 24.59 | H65: 27.5 | I65: FT,10255
A66: PALESTRA BADIA 2 | B66: 264312 | C66: Via Eden Badia Prataglia | D66: 5/2018/00008295 | E66: 452.1 | F66: 71.5 | G66: 66.11 | H66: 76.56 | I66: FT,10389
E67: =SUM(E62:E66) -> 2032.97 | F67: =SUM(F62:F66) -> 1088.61 | G67: =SUM(G62:G66) -> 1199.77
A69: CAPITOLO 141702 CIMITERI | H69: =SUM(H62:H67) -> 1182.83
A71: CIM. PORRENA | B71: 128518 | C71: Loc. Porrena alta | D71: 5/2018/00006744 | E71: 20.74 | F71: 20.9 | G71: 21.34 | H71: 21.34 | I71: FT,8918
A72: CIM.CERTOMONDO | B72: 200421 | C72: Via Capuccini Ponte a Poppi | D72: 5/2018/00007864 | E72: 91.25 | F72: 43.01 | G72: 321.69 | H72: 47.14 | I72: FT,9976
A73: CIM.POPPI | B73: 151351 | C73: Via Magrete Poppi Fuori Mura | D73: 5/2018/00006828 | E73: -35.53 | F73: 58.74 | G73: 319.33 | H73: 61.93 | I73: FT,8995
A74: CIM.MEMMENANO | B74: 200418 | C74: Loc. Memmenano Case Spesre | D74: 5/2018/00007862 | E74: 16.89 | F74: 33.33 | G74: 34.82 | H74: 30.69 | I74: FT,9974
A75: CIM.SAN MARTINO | B75: 200400 | C75: Fraz. S. Martino in Tremoleto | D75: 5/2018/00007849 | E75: 29.59 | F75: 166.1 | G75: -114.4 | H75: 178.58 | I75: FT,9961
A76: CIM.MOGGIONA | B76: 200404 | C76: Via della Selva Moggiona | D76: 5/2018/00007852 | E76: 30.41 | F76: 34.32 | G76: 130.35 | H76: 35.09 | I76: FT,9964
E77: =SUM(E71:E76) -> 153.35 | F77: =SUM(F71:F76) -> 356.4 | G77: =SUM(G71:G76) -> 713.13 | H77: =SUM(H71:H76) -> 374.77
A79: CAPITOLO 73412
A81: SCUOLa MEDIA e PALESTRA .POPPI | B81: 200853 | C81: Via Colle Ascensione 3 Poppi Fuori Mura | D81: 5/2018/00007927 | E81: 546.09 | F81: 528.83 | G81: 548.18 | H81: 566.34 | I81: FT,10033
A84: CAPITOLO 8218 IMMOBILI
F85: 223.9
A86: MUNICIPIO | B86: 201148 | C86: Via Cavour 11 Poppi Centro | D86: 5/2018/00007989 | E86: 352.94 | F86: =SUM(F83:F85) -> 223.9 | G86: 226.05 | H86: 167.09 | I86: FT,10091
A87: EX LICEO CARABINIERI | B87: 200852 | C87: Via Cesare Battisti 15 Poppi Centro | D87: 5/2018/00007926 | E87: -199.87 | G87: 680.46 | H87: 642.23 | I87: FT,10032
A88: AGENZIA DELLE ENTRATE | B88: 200855 | C88: Via Cesare Battisti 5 Poppi Centro | D88: 5/2018/00007929 | E88: 164.17 | G88: 101.04 | H88: 238.7 | I88: FT,10035
E89: =SUM(E86:E88) -> 317.24 | H89: =SUM(H86:H88) -> 1048.02
G90: =SUM(G86:G89) -> 1007.55

Sheet Foglio2
A1: CAPITOLO 69214 SCUOLE | B1: Cod.clienti | C1: Indirizzo | D1: N.FATTURA | E1: 1 sem.2019
A3: ELEM.POPPI | B3: 169823 | C3: Via Colle Ascensione Poppi Fuori Mura | D3: 5/2019/00001423 | E3: 2252.52
A4: SCUOLE ELEM. BADIA | B4: 201040 | C4: Via Nazionale Badia Prataglia | D4: 5/2019/00002471 | E4: 294.96
E5: =SUM(E3:E4) -> 2547.48 | F5: DT.129/19 + INT,
A7: CAPITOLO 173005 FONTANE
A9: f.POPPI V. SOCIANI | B9: 151368 | C9: Via Sociani Poppi Centro | D9: 5/2019/00001319 | E9: 2.25
A10: f.BADIA XIII APRILE | B10: 151460 | C10: Piazza XIII Aprile Badia Prataglia | D10: 5/2019/00001329 | E10: 15.4
A11: f.PORRENA ALTA | B11: 151619 | C11: Loc. Porrena Alta Porrena | D11: 5/2019/00001343 | E11: 0.05
A12: f.MEMMENANO 1 | B12: 153005 | C12: Loc. Memmenano Case Sparse | D12: 5/2019/00001359 | E12: 6.77
A13: f.CERTOMONDO | B13: 153831 | C13: Loc. Certomondo Ponte a Poppi | D13: 5/2019/00001370 | E13: 4.4
A14: f.POPPI V V.VENETO | B14: 176361 | C14: Viale Vittorio Veneto 15 Poppi Fuori Mura | D14: 5/2019/00001450 | E14: 21.4
A15: f.SAN MARTINO 1 | B15: 197181 | C15: Fraz. S. Martino in Tremoleto Case Sparse | D15: 5/2019/00002116 | E15: 36.47
A16: f.MOGGIONA V. LASTRI | B16: 200405 | C16: Via dei Lastri Moggiona | D16: 5/2019/00003442 | E16: 0
A17: f.AVENA 1 | B17: 200406 | C17: Fraz. Avena Case Sparse | D17: 5/2019/00002348 | E17: 55
A18: f.P.A POPPI P. RISORG. | B18: 200407 | C18: Piazza Risorgimento Ponte a Poppi | D18: 5/2019/00002349 | E18: 32.34
A19: f. P.A POPPI P.GARIBAL | B19: 200408 | C19: Piazza Garibali Ponte a Poppi | D19: 5/2019/00002350 | E19: 365.42
A20: f.POPPI P.GRAMSCI 1 | B20: 200409 | C20: Piazza Antonio Gramsci Poppi Centro | D20: 5/2019/00002351 | E20: 4.4
A21: f.POPPI P. GRAMSCI 2 | B21: 200410 | C21: Piazza Antonio Gramsci Poppi Centro | D21: 5/2019/00002352 | E21: 6.55
A22: f.AVENA 2 | B22: 200414 | C22: Fraz. Avena Case Sparse | D22: 5/2019/00002354 | E22: 6.55
A23: f.P.A POPPI V RESISTEN | B23: 200415 | C23: Via della Resistenza Ponte a Poppi | D23: 5/2019/00002355 | E23: 52.91
A24: f.P.A POPPI VIA GORIZIA | B24: 200417 | C24: Via Gorizia Poppi Fuori Mura | D24: 5/2019/00002356 | E24: -23.38
A25: f.MEMMENANO 2 | B25: 200419 | C25: Loc. Memmenano Case Sparse | D25: 5/2019/00002358 | E25: 10.83
A26: f.POPPI VIA CAVOUR | B26: 200422 | C26: Via Cavour Poppi Centro | D26: 5/2019/00002360 | E26: 13.09
A27: f.POPPI P.AMERIGHI | B27: 200423 | C27: Piazza Amerighi Ponte a Poppi | D27: 5/2019/00002361 | E27: 93.55
A28: f.QUORLE | B28: 200599 | C28: Loc. Quorle Case Sparse | D28: 5/2019/00002410 | E28: 2.2
A29: f.RIOSECCO | B29: 200601 | C29: Loc. Riosecco Case Sparse | D29: 5/2019/00002411 | E29: 8.75
A30: f.BADIA V.FIUME D.ISO | B30: 201041 | C30: Via Fiume d' Isola Badia Prataglia | D30: 5/2019/00002472 | E30: 17.44
A31: f.LIERNA | B31: 201047 | C31: Fraz. Lierna Case Sparse | D31: 5/2019/00002477 | E31: 17.27
A32: f.SAN MARTINO 2 | B32: 201144 | C32: Fraz. Martino in Tremoleto Case Sparse | D32: 5/2019/00002480 | E32: 71.06
A33: f.BADIA P.MERCATO | B33: 201149 | C33: Piazza del Mercato Badia Prataglia | D33: 5/2019/00002484 | E33: 58.14
A34: f.POPPI P.REPUBBL.1 | B34: 203334 | C34: Piazza della Repubblica 1 Poppi Centro | D34: 5/2019/00002502 | E34: -3.69
A35: f.P.A POPPI V.EUROPA | B35: 213895 | C35: Viale Europa Ponte a Poppi | D35: 5/2019/00002538 | E35: 193.27
A36: f. MOGGIONA V. CAMALDOLI | B36: 200401 | C36: Via di Camaldoli Moggiona | D36: 5/2019/00002344 | E36: 10.89
A37: f. POPPI V. ROTONDA | B37: 230168 | C37: Via Roma Ponte a Poppi | D37: 5/2019/00002589 | E37: 335.5
A38: F.CASTELLO | B38: 201335 | C38: Piazza della Repubblica | D38: 5/2019/00002493 | E38: 1363.78
E39: =SUM(E9:E39) -> 2778.61 | F39: €.1.414,83DT.129/19 + INT,
A40: CAPITOLO 93016 | F40: €.1.363,78 dt,1308/17
A42: BIBL.FARM. POPPI | B42: 201147 | C42: Piazza Amerighi Poppi Centro | D42: 5/2019/00002482 | E42: 74.53
A43: CASTELLO | B43: 201336 | C43: Piazza della Repubblica Poppi Centro | D43: 5/2019/00002494 | E43: 402.49
E44: =SUM(E42:E43) -> 477.02 | F44: €.114,29 dt.1308/17
A45: CAPITOLO 178405 IMP. SPORTIVI | F45: €300,00 dt.129/19
A47: CAMPO SPORTIVO | B47: 231243 | C47: Viale Europa Ponte a Poppi | D47: 5/2019/00002594 | E47: 1305.59
A48: CAMPO SPORTIVO | B48: 201048 | C48: Via Fonte alle Fate Poppi Fuori Mura | D48: 5/2019/00002478 | E48: 47.41
A49: PALAZZETTO DELLO SPORT | B49: 200854 | C49: Via Buiano Poppi Fuori Mura | D49: 5/2019/00002423 | E49: 1058.75
A50: PALESTRA BADIA 1 | B50: 241369 | C50: Via Eden Badia Prataglia | D50: 5/2019/00002463 | E50: 51.26
A51: PALESTRA BADIA 2 | B51: 264312 | C51: Via Eden Badia Prataglia | D51: 5/2019/00002792 | E51: 208.23
E52: =SUM(E47:E51) -> 2671.24 | F52: DT.129/19 + INT,
A54: CAPITOLO 141702 CIMITERI
A56: CIM. PORRENA | B56: 128518 | C56: Loc. Porrena alta | D56: 5/2019/00001231 | E56: 41.41
A57: CIM.CERTOMONDO | B57: 200421 | C57: Via Capuccini Ponte a Poppi | D57: 5/2019/00002359 | E57: 250.96
A58: CIM.POPPI | B58: 151351 | C58: Via Magrete Poppi Fuori Mura | D58: 5/2019/00001314 | E58: 1477.41
A59: CIM.MEMMENANO | B59: 200418 | C59: Loc. Memmenano Case Spesre | D59: 5/2019/00002357 | E59: 48.4
A60: CIM.SAN MARTINO | B60: 200400 | C60: Fraz. S. Martino in Tremoleto | D60: 5/2019/00002343 | E60: -112.75
A61: CIM.MOGGIONA | B61: 200404 | C61: Via della Selva Moggiona | D61: 5/2019/00002346 | E61: 85.69
E62: =SUM(E56:E61) -> 1791.12 | F62: DT.129/19 + INT,
A64: CAPITOLO 73412
A66: SCUOLa MEDIA e PALESTRA .POPPI | B66: 200853 | C66: Via Colle Ascensione 3 Poppi Fuori Mura | D66: 5/2019/00002422 | E66: 3037.81
A67: BAGNI PUBBLICI | B67: 153830 | C67: Via Mino da Poppi Poppi Centro | D67: 5/2019/00001369 | E67: 47.41
A68: EX ELE.P A POPPI | B68: 151595 | C68: Piazza Risorgimento 36 Ponte a Poppi | D68: 5/2019/00001334 | E68: 766.15
A69: CENT.SOC. AVENA | B69: 200413 | C69: Fraz. Avena Case Sparse | D69: 5/2019/00002353 | E69: 213.73
A70: EX PRETURA | B70: 200856 | C70: Via Mino da Poppi Poppi Centro | D70: 5/2019/00002425 | E70: 78.81
A71: EX SCUOLA LIERNA | B71: 200891 | C71: Fraz.Lierna 67 Case Sparse | D71: 5/2019/00002426 | E71: 81.9
A72: EX CINEMA BADIA | B72: 201145 | C72: Via Eden Badia Prataglia | D72: 5/2019/00002481 | E72: 351.07
A73: EX SCU BECARINO | B73: 195037 | C73: Via Becarino 32/A - (246874 vecchio codice) | D73: 5/2019/00001969 | E73: 104.61
A74: UFFICI PUBBLICI SEDE COMUNALE | B74: 246874 | C74: Via dei Bianchi Poppi Centro | D74: 5/2019/00002672 | E74: 43.67
A75: MAGAZZINO COMUNALE | B75: 201334 | C75: Via Corta Ponte a Poppi | D75: 5/2019/00002492 | E75: 91.91
A76: MAG. SPAZINO COMUNALE | B76: 200403 | C76: Piazza XIII Aprile Badia Prataglia | D76: 5/2019/00002345 | E76: 262.35
A77: OSSERV. FAUNISTICO MOGGIONA | B77: 151592 | C77: Via della Porta 31 Moggiona | D77: 5/2019/00001332 | E77: 51.31
E79: =SUM(E66:E78) -> 5130.73 | F79: DT.129/19 + INT,
A81: CAPITOLO 8218 IMMOBILI
A83: MUNICIPIO | B83: 201148 | C83: Via Cavour 11 Poppi Centro | D83: 5/2019/00002483 | E83: 418.28
A84: EX LICEO CARABINIERI | B84: 200852 | C84: Via Cesare Battisti 15 Poppi Centro | D84: 5/2019/00002421 | E84: 1105.28
A85: AGENZIA DELLE ENTRATE | B85: 200855 | C85: Via Cesare Battisti 5 Poppi Centro | D85: 5/2019/00002424 | E85: 228.58
E86: =SUM(E83:E85) -> 1752.14 | F86: DT.129/19 + INT,

Sheet Foglio3

Sheet Foglio4
